bitfinex-derivatives/quotes_SOLF0:USTF0_20260204
["timestamp","ask_amount","ask_price","bid_price","bid_amount"]
[1770231847814,3.83825823,93.344,93.258,9.6709]
[1770231848709,3.83825823,93.344,93.244,9.6723]
[1770231848909,3.83825823,93.344,93.234,2.81055234]
[1770231849309,3.83825823,93.331,93.234,2.81055234]
[1770231849513,3.83825823,93.331,93.208,2.72172495]
[1770231849819,3.83825823,93.323,93.208,2.72172495]
[1770231850011,3.83825823,93.322,93.208,2.72172495]
[1770231850505,3.83825823,93.316,93.235,9.6733]
[1770231850708,3.83825823,93.316,93.181,2.33080633]
[1770231850904,3.83825823,93.316,93.151,2.33080633]
[1770231850905,3.83825823,93.297,93.151,2.33080633]
[1770231851111,3.83825823,93.297,93.117,150.6645]
[1770231851112,3.83825823,93.293,93.188,2.33080633]
[1770231851308,19.82858911,93.355,93.251,2.33080633]
[1770231851513,3.83825823,93.383,93.242,150.4626]
[1770231851514,9.6581,93.382,93.271,2.33080633]
[1770231851715,3.83825823,93.381,93.271,2.33080633]
[1770231852016,20.60191759,93.43,93.271,2.33080633]
[1770231852017,3.83825823,93.363,93.271,2.33080633]
[1770231852618,3.83825823,93.361,93.271,2.33080633]
[1770231852819,3.83825823,93.361,93.244,2.49557941]
[1770231853020,3.83825823,93.361,93.251,2.49557941]
[1770231853815,3.83825823,93.343,93.251,2.49557941]
[1770231854620,3.83825823,93.372,93.251,2.49557941]
[1770231854815,3.83825823,93.372,93.298,9.6667]
[1770231855211,3.83825823,93.372,93.279,2.44689972]
[1770231855415,3.83825823,93.393,93.281,2.44689972]
[1770231855619,3.83825823,93.393,93.284,2.44689972]
[1770231855820,3.83825823,93.421,93.358,9.6606]
[1770231856216,3.83825823,93.421,93.339,2.53729962]
[1770231856527,3.83825823,93.421,93.369,9.6594]
[1770231856734,3.83825823,93.448,93.341,2.53729962]
[1770231857428,3.83825823,93.448,93.34,30.88064298]
[1770231857429,46.23697416,93.614,93.407,450.5895]
[1770231857629,46.23697416,93.614,93.384,450.7022]
[1770231857630,46.23697416,93.614,93.34,30.88064298]
[1770231857631,12.59198821,93.671,93.531,149.998]
[1770231857825,149.6613,93.742,93.531,149.998]
[1770231857826,30.88064298,93.76,93.56,180.83184298]
[1770231858027,149.5729,93.798,93.65,30.88064298]
[1770231858230,149.5267,93.827,93.607,149.876]
[1770231858432,149.57,93.8,93.62,30.88064298]
[1770231858738,149.4944,93.847,93.651,149.8058]
[1770231858933,149.527,93.827,93.65,30.88064298]
[1770231859230,149.5335,93.823,93.65,30.88064298]
[1770231859432,149.5321,93.823,93.65,30.88064298]
[1770231859635,9.6156,93.796,93.65,30.88064298]
[1770231859830,6.32834775,93.796,93.539,149.9846]
[1770231860137,6.32834775,93.752,93.63,30.88064298]
[1770231860433,149.6161,93.771,93.515,150.0238]
[1770231860434,6.32834775,93.749,93.6,30.88064298]
[1770231860735,6.32834775,93.727,93.6,30.88064298]
[1770231861337,6.32834775,93.701,93.57,30.88064298]
[1770231861830,6.32834775,93.701,93.461,150.1108]
[1770231861831,9.6281,93.674,93.49,9.6469]
[1770231862131,6.7224747,93.684,93.56,30.88064298]
[1770231862532,6.7224747,93.681,93.56,30.88064298]
[1770231863135,6.7224747,93.678,93.56,30.88064298]
[1770231863537,6.7224747,93.652,93.56,30.88064298]
[1770231864228,6.7224747,93.652,93.53,30.88064298]
[1770231864626,6.8018951,93.649,93.53,30.88064298]
[1770231865031,6.8018951,93.779,93.64,30.88064298]
[1770231865237,6.8018951,93.765,93.64,30.88064298]
[1770231865736,6.8018951,93.756,93.64,30.88064298]
[1770231866127,6.78399175,93.753,93.64,30.88064298]
[1770231866835,6.78399175,93.75,93.64,30.88064298]
[1770231867033,6.78399175,93.75,93.61,30.88064298]
[1770231867233,6.78399175,93.75,93.64,30.88064298]
[1770231867737,6.79440589,93.719,93.59,30.88064298]
[1770231867936,6.79440589,93.717,93.59,30.88064298]
[1770231868239,149.6873,93.726,93.59,30.88064298]
[1770231868240,9.6257,93.697,93.59,30.88064298]
[1770231868638,9.6257,93.697,93.56,30.88064298]
[1770231868838,9.6153,93.798,93.69,30.88064298]
[1770231869240,156.26580589,93.862,93.72,30.88064298]
[1770231869432,448.1523,93.916,93.659,149.7927]
[1770231869433,6.79440589,93.933,93.78,30.88064298]
[1770231869635,6.79440589,93.899,93.72,30.88064298]
[1770231869835,6.71476551,93.894,93.749,9.6203]
[1770231870238,6.71476551,93.894,93.75,30.88064298]
[1770231870539,6.71476551,93.875,93.71,30.88064298]
[1770231870739,6.71476551,93.872,93.71,30.88064298]
[1770231870937,6.71476551,93.869,93.71,30.88064298]
[1770231871143,6.71476551,93.834,93.68,30.88064298]
[1770231871340,6.71476551,93.834,93.693,149.7387]
[1770231871530,6.71476551,93.834,93.68,30.88064298]
[1770231871734,6.71476551,93.834,93.721,9.6232]
[1770231871930,150.0,93.9,93.74,30.88064298]
[1770231872131,150.0,93.9,93.82,9.613]
[1770231872531,150.0,93.9,93.83,30.88064298]
[1770231872941,150.0,93.9,93.757,149.6365]
[1770231872942,150.0,93.9,93.8,30.88064298]
[1770231873133,150.0,93.9,93.768,149.6188]
[1770231873134,54.17387227,93.9,93.846,9.6103]
[1770231873440,54.17387227,93.9,93.803,149.5623]
[1770231873441,149.3067,93.965,93.79,30.88064298]
[1770231873641,149.3202,93.957,93.79,30.88064298]
[1770231873835,9.6036,93.913,93.79,30.88064298]
[1770231874039,44.19467614,93.923,93.79,30.88064298]
[1770231874236,44.19467614,93.923,93.698,149.7313]
[1770231874237,9.6064,93.885,93.747,9.6205]
[1770231874438,44.19467614,93.884,93.74,30.88064298]
[1770231875136,53.80137614,93.883,93.74,30.88064298]
[1770231875532,9.6084,93.866,93.741,9.6211]
[1770231875733,44.21531777,93.866,93.71,30.88064298]
[1770231876441,9.6103,93.847,93.717,9.6235]
[1770231876639,44.21531777,93.866,93.71,63.10064298]
[1770231876945,44.21531777,93.866,93.74,30.88064298]
[1770231877140,44.21531777,93.866,93.753,9.6199]
[1770231877339,44.21531777,93.866,93.74,30.88064298]
[1770231877741,44.21531777,93.866,93.742,9.621]
[1770231877938,44.21531777,93.866,93.74,30.88064298]
[1770231878241,44.21531777,93.866,93.673,449.311]
[1770231878242,8.636e-05,93.907,93.84,30.88064298]
[1770231878440,8.636e-05,93.907,93.759,149.6333]
[1770231878441,8.636e-05,93.907,93.81,30.88064298]
[1770231878642,8.636e-05,93.907,93.751,149.6463]
[1770231878643,8.636e-05,93.907,93.78,30.88064298]
[1770231878841,44.21383319,93.907,93.78,30.88064298]
[1770231879442,9.6045,93.904,93.783,9.6168]
[1770231879733,44.17733566,93.904,93.75,30.88064298]
[1770231879939,9.6061,93.888,93.767,9.6185]
[1770231880141,9.6061,93.888,93.75,30.88064298]
[1770231880341,44.17733566,93.888,93.75,30.88064298]
[1770231880542,44.17733566,93.888,93.751,9.6201]
[1770231880739,44.17733566,93.888,93.75,30.88064298]
[1770231881038,44.17733566,93.888,93.795,9.6155]
[1770231881242,8.636e-05,93.907,93.8,30.88064298]
[1770231881638,8.636e-05,93.907,93.692,149.7396]
[1770231881842,44.16562782,93.895,93.73,30.88064298]
[1770231882044,44.16562782,93.893,93.73,30.88064298]
[1770231882341,44.16562782,93.891,93.73,30.88064298]
[1770231882639,44.16562782,93.891,93.679,149.7605]
[1770231882640,44.16562782,93.993,93.819,149.5368]
[1770231882847,44.16562782,93.993,93.851,32.22]
[1770231883044,44.16562782,93.993,93.85,30.88064298]
[1770231883242,9.5985,93.963,93.854,9.6095]
[1770231883439,44.16562782,93.991,93.854,9.6095]
[1770231883640,44.16562782,93.989,93.83,30.88064298]
[1770231883848,9.5984,93.964,93.83,30.88064298]
[1770231884543,9.5999,93.949,93.83,30.88064298]
[1770231884743,43.93351204,93.947,93.791,32.22]
[1770231884944,260.4356,93.972,93.69,30.88064298]
[1770231884945,27.82351204,93.869,93.69,30.88064298]
[1770231885150,27.82351204,93.869,93.596,449.6798]
[1770231885151,27.82351204,93.823,93.68,30.88064298]
[1770231885349,111.06,93.868,93.65,30.88064298]
[1770231885350,27.82351204,93.802,93.65,30.88064298]
[1770231885644,27.80420272,93.745,93.621,32.22]
[1770231885847,27.80420272,93.763,93.61,30.88064298]
[1770231886646,27.80420272,93.763,93.611,32.22]
[1770231887044,27.80420272,93.763,93.656,9.6298]
[1770231887243,27.80420272,93.763,93.611,32.22]
[1770231887244,9.619,93.762,93.611,32.22]
[1770231887447,27.80420272,93.763,93.61,30.88064298]
[1770231887843,27.76941236,93.757,93.61,30.88064298]
[1770231888150,27.76941236,93.755,93.61,30.88064298]
[1770231888350,9.6201,93.752,93.61,30.88064298]
[1770231888547,27.76941236,93.749,93.57,30.88064298]
[1770231888747,27.76941236,93.746,93.607,9.6349]
[1770231888946,27.76941236,93.746,93.574,149.9296]
[1770231889149,27.76941236,93.746,93.578,19.2758]
[1770231889347,27.76941236,93.746,93.57,30.88064298]
[1770231889745,27.75750433,93.711,93.581,149.9181]
[1770231889950,112.92,93.745,93.575,149.927]
[1770231889951,27.75750433,93.744,93.575,149.927]
[1770231890146,27.75750433,93.726,93.57,30.88064298]
[1770231890447,27.75750433,93.719,93.54,30.88064298]
[1770231890647,27.75750433,93.719,93.528,150.0024]
[1770231890849,27.75750433,93.68,93.576,9.638]
[1770231891048,27.75750433,93.678,93.51,180.91264298]
[1770231891352,27.75750433,93.676,93.56,9.6397]
[1770231891645,27.75750433,93.674,93.523,150.0113]
[1770231891850,27.75507447,93.672,93.573,9.6384]
[1770231892051,27.75507447,93.672,93.51,180.91264298]
[1770231892254,30.88064298,93.72,93.51,180.91264298]
[1770231892255,27.75507447,93.67,93.51,180.91264298]
[1770231892441,149.7066,93.714,93.51,180.91264298]
[1770231892442,27.75507447,93.668,93.517,150.0199]
[1770231892642,27.75507447,93.667,93.51,180.91264298]
[1770231892843,27.75507447,93.663,93.555,9.6402]
[1770231893051,27.75507447,93.663,93.532,149.9965]
[1770231893242,27.75507447,93.663,93.524,150.0095]
[1770231893243,27.75507447,93.663,93.488,150.0674]
[1770231893448,27.75507447,93.611,93.45,30.88064298]
[1770231893644,27.75507447,93.609,93.456,150.1185]
[1770231893852,27.7776132,93.607,93.45,30.88064298]
[1770231894053,27.7776132,93.603,93.45,30.88064298]
[1770231894254,27.7776132,93.603,93.426,150.1664]
[1770231894448,27.7776132,93.603,93.46,150.1121]
[1770231894646,27.7776132,93.603,93.499,9.646]
[1770231894855,27.7776132,93.603,93.491,150.062]
[1770231895150,149.7181,93.707,93.474,150.0893]
[1770231895151,27.7776132,93.634,93.55,9.6407]
[1770231895454,27.7776132,93.634,93.526,150.0058]
[1770231895651,27.7776132,93.634,93.528,150.0031]
[1770231895852,27.80195995,93.664,93.564,9.6393]
[1770231896251,27.80195995,93.664,93.58,9.6376]
[1770231896852,27.80195995,93.664,93.5,30.88064298]
[1770231897056,27.80195995,93.664,93.493,150.0594]
[1770231897449,27.80195995,93.657,93.542,9.6416]
[1770231897657,27.81160581,93.655,93.49,30.88064298]
[1770231898153,27.81160581,93.647,93.465,150.1043]
[1770231898354,27.81160581,93.647,93.473,150.0911]
[1770231898555,27.81160581,93.644,93.491,9.6468]
[1770231898756,27.81160581,93.642,93.465,150.1045]
[1770231899060,27.81146932,93.606,93.441,150.1418]
[1770231899250,27.81146932,93.606,93.43,181.04034298]
[1770231899251,27.81146932,93.606,93.438,150.1478]
[1770231899452,27.81146932,93.606,93.442,150.1414]
[1770231899653,27.74545965,93.569,93.456,9.6504]
[1770231900252,27.74545965,93.566,93.44,9.6521]
[1770231900453,27.74545965,93.566,93.38,181.12054298]
[1770231900454,27.74545965,93.566,93.386,150.2314]
[1770231900649,149.8683,93.613,93.347,171.6535]
[1770231900650,27.74545965,93.543,93.35,30.88064298]
[1770231900857,27.74545965,93.487,93.347,21.36]
[1770231901159,27.74545965,93.487,93.349,150.2901]
[1770231901354,27.74545965,93.487,93.347,21.36]
[1770231901355,27.74545965,93.513,93.405,9.6557]
[1770231901554,27.74545965,93.513,93.35,30.88064298]
[1770231901555,27.74545965,93.513,93.32,30.88064298]
[1770231901760,27.74618898,93.441,93.267,150.4218]
[1770231902054,27.74618898,93.429,93.238,150.4688]
[1770231902356,27.74618898,93.429,93.325,9.664]
[1770231902655,27.74618898,93.429,93.271,150.4167]
[1770231902656,27.74618898,93.429,93.29,30.88064298]
[1770231902857,27.74618898,93.429,93.336,9.6628]
[1770231903555,27.74618898,93.504,93.37,150.2564]
[1770231903857,27.74618898,93.504,93.358,150.2766]
[1770231904054,30.88064298,93.53,93.385,9.6577]
[1770231904055,27.71775548,93.501,93.385,9.6577]
[1770231904248,27.71775548,93.501,93.342,150.3015]
[1770231904453,27.71775548,93.484,93.331,150.3201]
[1770231904654,27.71775548,93.484,93.37,9.6593]
[1770231904855,27.71775548,93.484,93.349,150.2911]
[1770231905056,27.71775548,93.484,93.399,9.6563]
[1770231905363,27.71775548,93.484,93.35,30.88064298]
[1770231905555,27.71775548,93.484,93.398,9.6564]
[1770231905757,27.71775548,93.484,93.35,30.88064298]
[1770231906962,27.71775548,93.484,93.397,9.6565]
[1770231907153,27.71775548,93.484,93.368,150.2603]
[1770231907356,27.62166849,93.515,93.384,150.2339]
[1770231907558,27.62166849,93.515,93.38,30.88064298]
[1770231907754,30.88064298,93.56,93.304,150.3636]
[1770231907755,27.62764858,93.499,93.304,150.3636]
[1770231907959,27.62764858,93.499,93.34,30.88064298]
[1770231908165,27.62764858,93.499,93.342,150.3011]
[1770231908361,27.62764858,93.483,93.356,150.2785]
[1770231908561,27.62764858,93.483,93.41,9.6552]
[1770231908962,27.62764858,93.483,93.372,150.2529]
[1770231909158,27.62764858,93.483,93.346,150.2957]
[1770231909465,27.62764858,93.483,93.351,150.2878]
[1770231909767,27.62764858,93.483,93.367,150.2616]
[1770231909960,27.62764858,93.483,93.36,150.2733]
[1770231910167,27.62764858,93.483,93.406,9.6556]
[1770231910366,27.62764858,93.483,93.375,150.2483]
[1770231910763,27.62764858,93.483,93.328,450.9705]
[1770231910764,27.62764858,93.483,93.348,150.2918]
[1770231910959,27.62764858,93.483,93.345,105.63349936]
[1770231910960,27.62764858,93.483,93.367,150.2621]
[1770231911163,27.62764858,93.483,93.375,150.2493]
[1770231911366,27.62764858,93.483,93.358,150.276]
[1770231911565,27.62764858,93.483,93.371,150.2558]
[1770231911765,27.62764858,93.483,93.421,9.6541]
[1770231912364,27.62764858,93.483,93.358,150.2765]
[1770231912664,27.62764858,93.483,93.36,150.2732]
[1770231912867,27.62764858,93.483,93.38,150.2411]
[1770231913058,27.62764858,93.483,93.356,150.2787]
[1770231913261,27.62764858,93.483,93.354,150.283]
[1770231913262,27.62764858,93.483,93.339,150.3063]
[1770231913462,27.81939402,93.48,93.347,150.2933]
[1770231913659,27.81939402,93.48,93.355,150.2816]
[1770231913867,27.81939402,93.48,93.339,32.22]
[1770231914069,27.81535459,93.478,93.392,9.6571]
[1770231914267,27.81535459,93.478,93.348,150.2915]
[1770231914762,27.81535459,93.478,93.41,9.6552]
[1770231915161,27.81535459,93.478,93.422,9.6539]
[1770231915774,27.81448667,93.519,93.422,9.6539]
[1770231915960,27.81448667,93.519,93.433,9.6528]
[1770231916268,27.81448667,93.519,93.389,150.2262]
[1770231916269,27.81448667,93.519,93.389,32.22]
[1770231916469,27.81448667,93.517,93.444,9.6516]
[1770231916671,27.81448667,93.517,93.38,20.52962817]
[1770231917066,27.81448667,93.513,93.391,150.2237]
[1770231917367,27.81448667,93.513,93.381,150.2395]
[1770231917368,27.81448667,93.513,93.382,32.22]
[1770231917570,27.81448667,93.498,93.37,20.52962817]
[1770231918165,27.82961855,93.496,93.352,150.2863]
[1770231918359,27.82961855,93.496,93.342,150.3017]
[1770231918360,27.82961855,93.496,93.35,20.52962817]
[1770231918773,27.82961855,93.481,93.391,9.6571]
[1770231919171,27.82961855,93.481,93.35,20.52962817]
[1770231919365,27.82961855,93.461,93.378,9.6585]
[1770231919570,27.82961855,93.461,93.32,20.52962817]
[1770231919771,27.82961855,93.461,93.301,19.333]
[1770231919965,27.82874215,93.42,93.301,19.333]
[1770231920173,27.82874215,93.42,93.302,150.3656]
[1770231920473,27.82874215,93.42,93.301,19.333]
[1770231921368,27.82874215,93.42,93.267,150.4224]
[1770231921568,27.82874215,93.405,93.282,150.399]
[1770231921768,27.82874215,93.405,93.272,150.4145]
[1770231921969,27.82874215,93.405,93.336,9.6628]
[1770231922668,27.83368604,93.404,93.324,9.6641]
[1770231922974,27.83368604,93.404,93.287,150.3906]
[1770231923170,27.83368604,93.404,93.349,9.6615]
[1770231923376,27.83368604,93.404,93.3,20.52962817]
[1770231923670,27.82550618,93.431,93.308,150.3566]
[1770231923875,27.82550618,93.431,93.3,20.52962817]
[1770231924066,27.82550618,93.431,93.307,19.3317]
[1770231924374,27.82550618,93.428,93.366,9.6598]
[1770231924566,27.82550618,93.486,93.33,20.52962817]
[1770231924764,27.82550618,93.486,93.302,451.099]
[1770231924765,27.82550618,93.486,93.36,20.52962817]
[1770231925165,27.82550618,93.486,93.364,150.2662]
[1770231925374,27.82550618,93.486,93.39,20.52962817]
[1770231925569,27.82550618,93.569,93.4,150.2083]
[1770231925774,20.52962817,93.57,93.394,150.2185]
[1770231925775,27.81929733,93.534,93.42,20.52962817]
[1770231926471,27.81929733,93.534,93.467,9.6492]
[1770231926670,27.81929733,93.534,93.422,150.1736]
[1770231926971,27.81929733,93.534,93.422,19.308]
[1770231927476,27.81929733,93.534,93.48,9.648]
[1770231927770,11.48869733,93.534,93.45,20.52962817]
[1770231928167,41.94962817,93.63,93.467,150.1009]
[1770231928366,41.94962817,93.63,93.48,20.52962817]
[1770231928367,21.42,93.63,93.48,20.52962817]
[1770231928578,21.42,93.63,93.451,32.22]
[1770231928579,41.94962817,93.63,93.509,9.645]
[1770231928878,149.8513,93.624,93.44,20.52962817]
[1770231929174,9.6397,93.561,93.491,9.6468]
[1770231929771,9.6385,93.573,93.491,9.6468]
[1770231929970,9.6385,93.573,93.423,150.1717]
[1770231929971,20.52962817,93.6,93.421,150.1753]
[1770231930179,9.02377837,93.594,93.42,20.52962817]
[1770231930475,149.8974,93.595,93.42,20.52962817]
[1770231930476,9.02377837,93.53,93.461,9.6499]
[1770231930675,9.02377837,93.53,93.42,20.52962817]
[1770231931077,9.02377837,93.513,93.38,20.52962817]
[1770231931670,9.6458,93.502,93.417,9.6544]
[1770231931875,9.00093217,93.501,93.358,19.3211]
[1770231932272,9.00093217,93.525,93.365,150.2649]
[1770231932479,9.00093217,93.525,93.412,150.1897]
[1770231932674,9.00093217,93.525,93.397,150.2129]
[1770231932675,9.00093217,93.587,93.445,150.1367]
[1770231932876,9.00093217,93.53,93.39,20.52962817]
[1770231933182,9.00093217,93.53,93.357,150.2774]
[1770231933183,9.00093217,93.528,93.36,20.52962817]
[1770231933375,9.00093217,93.509,93.337,19.3256]
[1770231933868,8.99719233,93.449,93.318,150.3402]
[1770231934069,8.99719233,93.449,93.309,150.3549]
[1770231934268,8.99719233,93.449,93.316,150.3436]
[1770231934468,8.99719233,93.445,93.377,9.6585]
[1770231934870,8.99719233,93.445,93.312,150.3504]
[1770231935066,8.99719233,93.445,93.315,150.3459]
[1770231935067,9.6519,93.443,93.315,150.3459]
[1770231935280,8.99719233,93.445,93.33,20.52962817]
[1770231935475,8.99719233,93.445,93.364,9.6599]
[1770231935672,8.99719233,93.445,93.33,20.52962817]
[1770231935973,18.64889233,93.445,93.375,9.6588]
[1770231936180,9.02151087,93.444,93.375,9.6588]
[1770231936381,9.02151087,93.444,93.33,20.52962817]
[1770231936567,9.02151087,93.436,93.3,20.52962817]
[1770231936768,9.02151087,93.436,93.33,20.52962817]
[1770231937374,9.02151087,93.436,93.372,9.6591]
[1770231937575,20.52962817,93.51,93.315,150.3459]
[1770231937576,9.02151087,93.466,93.36,20.52962817]
[1770231938774,8.98072633,93.465,93.36,20.52962817]
[1770231939375,8.98072633,93.523,93.363,150.2678]
[1770231939574,8.98072633,93.523,93.39,20.52962817]
[1770231940072,8.98072633,93.523,93.36,20.52962817]
[1770231940272,9.05913615,93.487,93.363,150.268]
[1770231940470,9.05913615,93.487,93.36,20.52962817]
[1770231940876,9.05913615,93.484,93.413,9.6548]
[1770231941176,9.05913615,93.484,93.36,20.52962817]
[1770231941383,9.05913615,93.478,93.36,20.52962817]
[1770231941577,9.05913615,93.478,93.361,150.2704]
[1770231941776,9.05913615,93.478,93.39,20.52962817]
[1770231941979,175.3030261,93.586,93.445,9.6516]
[1770231941980,9.1404346,93.518,93.445,9.6516]
[1770231942179,9.1404346,93.518,93.39,20.52962817]
[1770231942479,9.1404346,93.516,93.442,9.6519]
[1770231942874,9.1404346,93.516,93.395,19.3136]
[1770231943077,9.1404346,93.516,93.449,9.6512]
[1770231943277,9.1404346,93.516,93.39,20.52962817]
[1770231944076,9.1404346,93.516,93.351,150.2865]
[1770231944077,9.14536698,93.501,93.37,20.52962817]
[1770231945375,9.14536698,93.482,93.408,9.6554]
[1770231946282,9.6491,93.47,93.397,9.6565]
[1770231946481,9.14536698,93.482,93.37,20.52962817]
[1770231946682,9.15090618,93.48,93.417,9.6545]
[1770231947082,9.15090618,93.48,93.37,20.52962817]
[1770231947284,9.15090618,93.48,93.414,9.6547]
[1770231947788,9.15090618,93.48,93.419,9.6542]
[1770231948181,9.15090618,93.48,93.37,20.52962817]
[1770231948479,9.15090618,93.48,93.377,150.2459]
[1770231948679,9.15090618,93.48,93.378,150.2438]
[1770231948982,9.15090618,93.48,93.379,32.22]
[1770231949483,9.15090618,93.48,93.384,150.2348]
[1770231949690,9.15090618,93.48,93.37,20.52962817]
[1770231950183,9.17576291,93.478,93.402,9.656]
[1770231950583,9.17576291,93.478,93.37,20.52962817]
[1770231950584,9.17576291,93.478,93.373,150.2513]
[1770231950789,9.17576291,93.507,93.432,9.6529]
[1770231950987,9.17576291,93.507,93.4,20.52962817]
[1770231951483,31.73865762,93.633,93.4,20.52962817]
[1770231951484,9.17576291,93.533,93.409,150.1938]
[1770231951683,9.17576291,93.533,93.43,20.52962817]
[1770231952679,19.04319457,93.55,93.43,20.52962817]
[1770231952680,9.17714746,93.531,93.43,20.52962817]
[1770231952891,9.17714746,93.531,93.4,20.52962817]
[1770231953295,9.6457,93.503,93.436,9.6525]
[1770231953592,9.17714746,93.551,93.416,150.1834]
[1770231953792,9.17714746,93.551,93.43,20.52962817]
[1770231954092,9.27148649,93.536,93.47,9.649]
[1770231954891,9.6424,93.534,93.47,9.649]
[1770231955092,9.27148649,93.533,93.47,9.649]
[1770231955489,9.27148649,93.533,93.44,19.3043]
[1770231955890,9.27148649,93.533,93.497,9.6462]
[1770231956093,9.29298572,93.558,93.46,20.52962817]
[1770231956492,9.29298572,93.541,93.47,9.6489]
[1770231956892,19.2717,93.599,93.47,9.6489]
[1770231956893,9.29298572,93.538,93.47,9.6489]
[1770231957092,9.6425,93.534,93.47,9.6489]
[1770231957288,9.6425,93.534,93.396,150.2154]
[1770231957289,9.29298572,93.52,93.4,20.52962817]
[1770231957493,9.29298572,93.508,93.4,20.52962817]
[1770231957697,9.27893883,93.505,93.4,20.52962817]
[1770231957901,9.27893883,93.502,93.4,20.52962817]
[1770231958991,9.27905674,93.5,93.43,9.6531]
[1770231959189,9.27905674,93.5,93.4,20.52962817]
[1770231959994,9.27516492,93.495,93.428,9.6533]
[1770231960190,9.27516492,93.495,93.4,20.52962817]
[1770231960396,9.27516492,93.495,93.37,20.52962817]
[1770231960595,9.27516492,93.495,93.326,21.42]
[1770231960790,9.27516492,93.437,93.31,20.52962817]
[1770231960995,9.27516492,93.425,93.362,9.6602]
[1770231961193,9.27516492,93.424,93.31,20.52962817]
[1770231961397,19.04319457,93.406,93.31,20.52962817]
[1770231961598,9.27516492,93.416,93.31,20.52962817]
[1770231961800,9.27516492,93.416,93.319,32.22]
[1770231962001,19.04319457,93.429,93.319,32.22]
[1770231962193,19.04319457,93.429,93.32,169.6662]
[1770231962400,19.04319457,93.438,93.34,20.52962817]
[1770231962595,19.04319457,93.438,93.305,150.3618]
[1770231962596,9.26405525,93.423,93.355,9.6609]
[1770231962796,9.26405525,93.423,93.31,20.52962817]
[1770231962797,9.26405525,93.412,93.31,20.52962817]
[1770231963101,31.73865762,93.497,93.31,20.52962817]
[1770231963102,9.26405525,93.441,93.31,20.52962817]
[1770231963500,9.26405525,93.429,93.31,20.52962817]
[1770231963901,9.15301912,93.42,93.346,9.6618]
[1770231964206,9.15301912,93.42,93.31,20.52962817]
[1770231964407,9.15301912,93.42,93.311,32.22]
[1770231965304,9.15301912,93.42,93.371,9.6592]
[1770231966506,9.15301912,93.42,93.382,9.658]
[1770231966713,9.15301912,93.42,93.34,20.52962817]
[1770231966906,9.15301912,93.42,93.371,9.6592]
[1770231967102,9.15301912,93.42,93.283,150.3965]
[1770231967103,9.15301912,93.42,93.31,20.52962817]
[1770231967302,9.15301912,93.42,93.29,20.52962817]
[1770231967508,9.12893591,93.419,93.344,9.662]
[1770231967707,9.12893591,93.419,93.292,19.3348]
[1770231967908,9.6578,93.386,93.309,9.6657]
[1770231968114,9.12063167,93.385,93.243,21.4]
[1770231968310,9.12063167,93.385,93.271,150.4166]
[1770231968616,25.3909261,93.468,93.261,150.4329]
[1770231968617,9.12063167,93.41,93.34,9.6624]
[1770231969013,9.12063167,93.41,93.3,20.52962817]
[1770231969614,150.1058,93.465,93.323,9.6642]
[1770231969615,9.12063167,93.407,93.323,9.6642]
[1770231969813,9.12063167,93.407,93.252,19.343]
[1770231969814,9.12063167,93.407,93.27,20.52962817]
[1770231970214,9.12063167,93.407,93.33,9.6635]
[1770231970813,9.12063167,93.407,93.301,32.22]
[1770231971911,9.12063167,93.407,93.33,9.6634]
[1770231972318,9.12063167,93.407,93.3,20.52962817]
[1770231972517,9.05292282,93.404,93.32,9.6645]
[1770231972912,9.05292282,93.404,93.3,20.52962817]
[1770231973312,9.05292282,93.404,93.301,32.22]
[1770231973715,9.05292282,93.404,93.352,9.6612]
[1770231973915,9.05272807,93.43,93.33,20.52962817]
[1770231974417,9.05272807,93.43,93.351,9.6613]
[1770231975322,9.05272807,93.43,93.313,32.22]
[1770231975520,9.05272807,93.43,93.34,30.8275741]
[1770231976217,9.05272807,93.43,93.307,150.3587]
[1770231976218,9.06195319,93.456,93.37,30.8275741]
[1770231977021,9.06195319,93.456,93.392,9.657]
[1770231977222,9.06195319,93.456,93.344,32.22]
[1770231977410,9.06195319,93.456,93.34,30.8275741]
[1770231977615,9.05536893,93.444,93.369,9.6594]
[1770231977818,9.05536893,93.444,93.34,30.8275741]
[1770231979718,9.23502163,93.432,93.34,30.8275741]
[1770231980523,9.23502163,93.43,93.34,30.8275741]
[1770231980920,9.6533,93.429,93.356,9.6608]
[1770231981123,9.23502163,93.428,93.313,32.22]
[1770231981722,9.23502163,93.428,93.34,30.8275741]
[1770231982022,9.25217307,93.496,93.34,30.8275741]
[1770231982719,9.25217307,93.454,93.34,30.8275741]
[1770231983520,9.25217307,93.454,93.372,9.6591]